fUST/lending_fUST_20250210
["ID","MTS","AMOUNT","RATE_DAILY","PERIOD"]
[352572103,1739173858059,-500.0,0.000155,7]
[352572104,1739173858068,-500.0,0.000155,7]
[352572105,1739173858080,-500.0,0.000155,7]
[352572106,1739173858089,-500.0,0.000155,7]
[352572107,1739173858098,-500.0,0.000155,7]
[352572108,1739173858107,-500.0,0.000155,7]
[352572109,1739173858117,-500.0,0.000155,7]
[352572110,1739173858126,-500.0,0.000155,7]
[352572111,1739173858135,-500.0,0.000155,7]
[352572112,1739173858144,-500.0,0.000155,7]
[352572113,1739173858153,-500.0,0.000155,7]
[352572114,1739173858162,-500.0,0.000155,7]
[352572115,1739173858172,-607.98,0.000155,7]
[352572116,1739173858181,-500.0,0.000155,7]
[352572117,1739173858190,-500.0,0.000155,7]
[352572118,1739173858199,-500.0,0.000155,7]
[352572119,1739173858208,-500.0,0.000155,7]
[352572120,1739173858217,-500.0,0.000155,7]
[352572121,1739173858227,-500.0,0.000155,7]
[352572122,1739173858235,-500.0,0.000155,7]
[352572123,1739173858244,-500.0,0.000155,7]
[352572124,1739173858254,-500.0,0.000155,7]
[352572125,1739173858263,-500.0,0.000155,7]
[352572126,1739173858272,-500.0,0.000155,7]
[352572127,1739173858281,-500.0,0.000155,7]
[352572128,1739173858290,-500.0,0.000155,7]
[352572129,1739173858299,-500.0,0.000155,7]
[352572130,1739173858308,-500.0,0.000155,7]
[352572131,1739173858316,-500.0,0.000155,7]
[352572132,1739173858326,-500.0,0.000155,7]
[352572133,1739173858335,-500.0,0.000155,7]
[352572134,1739173858410,-344.38,0.000155,7]
[352572135,1739173858420,-315.574191,0.000155,2]
[352572136,1739173858429,-315.574191,0.000155,2]
[352572137,1739173858438,-306.3457281,0.00015534,2]
[352572138,1739173858448,-153.88,0.0001568,2]
[352572139,1739173858457,-592.96,0.00015927,2]
[352572140,1739173858467,-500.0,0.00016125,2]
[352572141,1739173858478,-688.0,0.00016164,2]
[352572142,1739173858487,-354.8426056,0.00016219,2]
[352572143,1739173858496,-354.8426056,0.00016219,2]
[352572144,1739173858506,-354.8426056,0.00016219,2]
[352572145,1739173858515,-354.8426056,0.00016219,2]
[352572146,1739173858524,-1180.84817499,0.0001623,2]
[352572147,1739173858534,-13267.29691025,0.00016241,2]
[352572148,1739173858543,-227.967871,0.00016241,2]
[352572149,1739173858552,-151.230315,0.00016324,2]
[352572150,1739173858561,-208.9294584,0.00016335,2]
[352572151,1739173858570,-154.604472,0.00016356,2]
[352572152,1739173858582,-412.5964681,0.00016356,2]
[352572153,1739173858591,-154.604472,0.00016356,2]
[352572154,1739173858601,-154.604472,0.00016356,2]
[352572155,1739173858610,-154.604472,0.00016356,2]
[352572156,1739173858619,-154.7299507,0.00016356,2]
[352572157,1739173858628,-215.839967,0.00016356,2]
[352572158,1739173858638,-153.0,0.00016356,2]
[352572159,1739173858648,-154.604472,0.00016356,2]
[352572160,1739173858657,-215.839967,0.00016356,2]
[352572161,1739173858667,-153.0,0.00016356,2]
[352572162,1739173858677,-215.839967,0.00016356,2]
[352572163,1739173858687,-154.604472,0.00016356,2]
[352572164,1739173858696,-154.604472,0.00016356,2]
[352572165,1739173858705,-215.839967,0.00016356,2]
[352572166,1739173858715,-215.6244295,0.00016356,2]
[352572167,1739173858725,-154.604472,0.00016356,2]
[352572168,1739173858734,-153.0,0.00016356,2]
[352572169,1739173858743,-215.839967,0.00016384,2]
[352572170,1739173858752,-154.604472,0.00016384,2]
[352572171,1739173858762,-500.0,0.00016438,2]
[352572172,1739173858771,-150.46877683,0.00016438,2]
[352572173,1739173858780,-151.0,0.00016438,2]
[352572174,1739173858789,-151.0,0.00016438,2]
[352572175,1739173858798,-500.0,0.00016438,2]
[352572176,1739173858808,-500.0,0.00016438,2]
[352572177,1739173858817,-500.0,0.00016438,2]
[352572178,1739173858828,-150.2,0.00016438,2]
[352572179,1739173858838,-1000.0,0.00016438,7]
[352572180,1739173858847,-1000.0,0.00016438,7]
[352572181,1739173858856,-1000.0,0.00016438,7]
[352572182,1739173858866,-1000.0,0.00016438,7]
[352572183,1739173858875,-1000.0,0.00016438,7]
[352572184,1739173858884,-1000.0,0.00016438,7]
[352572185,1739173858894,-1000.0,0.00016438,7]
[352572186,1739173858903,-1000.0,0.00016438,7]
[352572187,1739173858912,-1000.0,0.00016438,7]
[352572188,1739173858922,-500.0,0.00016438,2]
[352572189,1739173858931,-1000.0,0.00016438,7]
[352572190,1739173858941,-1000.0,0.00016438,7]
[352572191,1739173858950,-1000.0,0.00016438,7]
[352572192,1739173858959,-785.486199,0.00016438,7]
[352572193,1739173858968,-150.2,0.00016438,2]
[352572194,1739173858977,-150.2,0.00016438,2]
[352572195,1739173858986,-500.0,0.00016438,2]
[352572196,1739173858996,-150.2,0.00016438,2]
[352572197,1739173859005,-150.2,0.00016438,2]
[352572198,1739173859014,-150.2,0.00016438,2]
[352572199,1739173859023,-150.2,0.00016438,2]
[352572200,1739173859032,-500.0,0.00016438,2]
[352572201,1739173859041,-150.2,0.00016438,2]
[352572202,1739173859050,-675.282182,0.00016438,2]
[352572203,1739173859059,-675.282182,0.00016438,2]
[352572204,1739173859068,-314.0,0.0001649,2]
[352572205,1739173859079,-151.0,0.00016499,2]
[352572206,1739173859088,-119794.85339115,0.000165,2]
[352572207,1739173859097,-500.17388534,0.000165,2]
[352572208,1739173859107,-7438.69753278,0.000165,7]
[352572209,1739173859117,-505.0,0.000165,6]
[352572210,1739173859125,-151.0,0.000165,2]
[352572211,1739173859135,-151.0,0.000165,2]
[352572212,1739173859144,-151.0,0.000165,2]
[352572213,1739173859153,-500.0,0.000165,2]
[352572214,1739173859162,-500.0,0.000165,2]
[352572215,1739173859171,-151.0,0.000165,2]
[352572216,1739173859181,-468.488411,0.000165,2]
[352572217,1739173859190,-468.488411,0.000165,2]
[352572218,1739173859199,-182.863275,0.000165,2]
[352572219,1739173859209,-182.863275,0.000165,2]
[352572220,1739173859218,-240.344214,0.000165,2]
[352572221,1739173859227,-7438.69753278,0.000165,7]
[352572222,1739173859237,-319.110338,0.000165,2]
[352572223,1739173859247,-319.110338,0.000165,2]
[352572224,1739173859256,-161.424521,0.000165,2]
[352572225,1739173859266,-161.424521,0.000165,2]
[352572226,1739173859275,-1050.16914991,0.00016524,2]
[352572227,1739173859285,-1021.84470984,0.00016532,2]
[352572228,1739173859295,-1050.16914991,0.00016624,2]
[352572229,1739173859304,-169.913091,0.0001666,3]
[352572230,1739173859313,-500.0,0.00016712,2]
[352572231,1739173859323,-652.40025042,0.00016712,2]
[352572232,1739173859333,-688.38799378,0.00016712,2]
[352572233,1739173859342,-500.0,0.00016712,2]
[352572234,1739173859351,-150.2,0.00016712,2]
[352572235,1739173859361,-500.0,0.00016712,2]
[352572236,1739173859370,-150.2,0.00016712,2]
[352572237,1739173859379,-150.2,0.00016712,2]
[352572238,1739173859389,-202.94129114,0.00016712,2]
[352572239,1739173859398,-615.21473555,0.00016712,2]
[352572240,1739173859410,-300.35741261,0.00016712,2]
[352572241,1739173859420,-1050.16914991,0.00016724,2]
[352572242,1739173859429,-226413.6429243,0.000168,2]
[352572243,1739173859439,-168.23,0.000168,2]
[352572244,1739173859448,-168.23,0.000168,2]
[352572245,1739173859458,-168.23,0.000168,2]
[352572246,1739173859467,-168.23,0.000168,2]
[352572247,1739173859477,-168.23,0.000168,2]
[352572248,1739173859486,-168.25392385,0.000168,2]
[352572249,1739173859495,-189.0,0.000168,2]
[352572250,1739173859503,-151.0,0.000168,2]
[352572251,1739173859513,-151.0,0.000168,2]
[352572252,1739173859522,-151.0,0.000168,2]
[352572253,1739173859531,-151.0,0.000168,2]
[352572254,1739173859541,-151.0,0.000168,2]
[352572255,1739173859551,-1050.16914991,0.00016824,2]
[352572256,1739173859560,-151.0,0.00016902,2]
[352572257,1739173859569,-1050.16914991,0.00016924,2]
[352572258,1739173859644,-500.0,0.00016973,2]
[352572259,1739173859654,-500.0,0.00016973,2]
[352572260,1739173859663,-500.0,0.00016986,2]
[352572261,1739173859672,-500.0,0.00016986,2]
[352572262,1739173859682,-257.56377837,0.00016986,2]
[352572263,1739173859691,-500.0,0.00016986,2]
[352572264,1739173859700,-150.2,0.00016986,2]
[352572265,1739173859709,-500.0,0.00016986,3]
[352572266,1739173859718,-2000.0,0.00017,2]
[352572267,1739173859728,-918.70885622,0.00017,120]
[352572268,1739173859737,-150.0,0.00017,2]
[352572269,1739173859746,-153284.26480906,0.00017,7]
[352572270,1739173859755,-10128.39052481,0.00017,20]
[352572271,1739173859765,-108838.60048226,0.00017,2]
[352572272,1739173859774,-7438.69753278,0.00017,7]
[352572273,1739173859783,-151.0,0.00017,2]
[352572274,1739173859792,-237.699747,0.00017,2]
[352572275,1739173859802,-151.0,0.00017,2]
[352572276,1739173859811,-151.0,0.00017,2]
[352572277,1739173859820,-151.456261,0.00017,2]
[352572278,1739173859830,-151.0,0.00017,2]
[352572279,1739173859839,-151.0,0.00017,2]
[352572280,1739173859849,-151.0,0.00017,2]
[352572281,1739173859858,-151.0,0.00017,2]
[352572282,1739173859868,-468.488411,0.00017,2]
[352572283,1739173859877,-468.488411,0.00017,2]
[352572284,1739173859887,-182.863275,0.00017,2]
[352572285,1739173859896,-182.863275,0.00017,2]
[352572286,1739173859905,-7438.69753278,0.00017,7]
[352572287,1739173859915,-319.110338,0.00017,2]
[352572288,1739173859924,-319.110338,0.00017,2]
[352572289,1739173859935,-161.424521,0.00017,2]
[352572290,1739173859944,-161.424521,0.00017,2]
[352572291,1739173859954,-315.574191,0.00017,2]
[352572292,1739173859963,-315.574191,0.00017,2]
[352572293,1739173859973,-675.282182,0.00017,2]
[352572294,1739173859982,-675.282182,0.00017,2]
[352572295,1739173859992,-22605.86033991,0.00017003,2]
[352572296,1739173860001,-161.0,0.00017008,2]
[352572297,1739173860011,-156.0,0.00017008,2]
[352572298,1739173860021,-160.0,0.00017008,2]
[352572299,1739173860030,-160.0,0.00017008,2]
[352572300,1739173860040,-160.0,0.00017008,2]
[352572301,1739173860050,-160.0,0.00017008,2]
[352572302,1739173860059,-160.0,0.00017008,2]
[352572303,1739173860069,-156.0,0.00017008,2]
[352572304,1739173860079,-160.0,0.00017008,2]
[352572305,1739173860088,-157.78,0.00017008,2]
[352572306,1739173860098,-160.0,0.00017008,2]
[352572307,1739173860107,-163.6,0.00017008,2]
[352572308,1739173860116,-1050.16914991,0.00017024,2]
[352572309,1739173860126,-1098.959312,0.00017123,2]
[352572310,1739173860136,-1050.16914991,0.00017124,2]
[352572311,1739173860145,-1180.84817499,0.00017125,2]
[352572312,1739173860154,-151.0,0.00017138,2]
[352572313,1739173860163,-151.0,0.00017138,2]
[352572314,1739173860172,-151.0,0.00017138,2]
[352572315,1739173860182,-151.0,0.00017138,2]
[352572316,1739173860191,-151.0,0.00017138,2]
[352572317,1739173860201,-8939.44513649,0.0001717,5]
[352572318,1739173860211,-1128.25854659,0.0001717,5]
[352572319,1739173860220,-473954.45116628,0.0001717,30]
[352572320,1739173860455,-500.0,0.00010957,2]
[352572321,1739173860464,-561.07019918,0.00010957,2]
[352572322,1739173860473,-500.0,0.00010958,2]
[352572323,1739173860485,-500.0,0.00010958,2]
[352572324,1739173860494,-500.0,0.00011095,2]
[352572325,1739173860503,-294.60480082,0.00011095,2]
[352572348,1739174641014,1085.55276773,0.00014,30]
[352572355,1739174743090,-1175.77707494,9.994e-05,2]
[352572356,1739174743111,-2478.0472044,0.00010095,2]
[352572357,1739174743131,-1807.30292413,0.00010807,2]
[352572358,1739174799089,-176.44026546,0.00010699,2]
[352572359,1739174831084,-1763.49448745,0.00010699,2]
[352572360,1739174839145,-1884.28817215,0.00010699,2]
[352572361,1739174839170,-300.0,0.00010793,2]
[352572362,1739174839194,-548.84223626,0.00010794,2]
[352572363,1739174843101,-4893.70559108,0.00010794,2]
[352572410,1739175038116,-400.0,0.00010685,2]
[352572411,1739175038125,-7438.69753278,0.00010756,2]
[352572412,1739175038134,-300.0,0.00010957,2]
[352572413,1739175038143,-500.0,0.00010958,2]
[352572414,1739175038152,-500.0,0.00010958,2]
[352572415,1739175038160,-500.0,0.00010958,2]
[352572416,1739175038170,-500.0,0.00010958,2]
[352572417,1739175038179,-500.0,0.00010958,2]
[352572418,1739175038189,-500.0,0.00010958,2]
[352572419,1739175038199,-500.0,0.00010958,2]
[352572421,1739175038209,-500.0,0.00010958,2]
[352572422,1739175038218,-500.0,0.00010958,2]
[352572423,1739175038228,-500.0,0.00010958,2]
[352572425,1739175038237,-500.0,0.00010958,2]
[352572427,1739175038247,-500.0,0.00010958,2]
[352572429,1739175038257,-500.0,0.00010958,2]
[352572432,1739175038267,-500.0,0.00010958,2]
[352572434,1739175038277,-500.0,0.00010958,2]
[352572436,1739175038291,-500.0,0.00010958,2]
[352572438,1739175038300,-500.0,0.00010958,2]
[352572440,1739175038312,-500.0,0.00010958,2]
[352572442,1739175038325,-500.0,0.00010958,2]
[352572444,1739175038338,-500.0,0.00010958,2]
[352572446,1739175038349,-500.0,0.00010958,2]
[352572448,1739175038359,-500.0,0.00010958,2]
[352572450,1739175038369,-500.0,0.00010958,2]
[352572452,1739175038378,-500.0,0.00010958,2]
[352572454,1739175038388,-500.0,0.00010958,2]
[352572457,1739175038398,-500.0,0.00010958,2]
[352572460,1739175038407,-500.0,0.00010958,2]
[352572463,1739175038416,-500.0,0.00010958,2]
[352572466,1739175038426,-500.0,0.00010958,2]
[352572469,1739175038436,-500.0,0.00010958,2]
[352572472,1739175038445,-500.0,0.00010958,2]
[352572475,1739175038455,-500.0,0.00010958,2]
[352572477,1739175038465,-500.0,0.00010958,2]
[352572479,1739175038476,-500.0,0.00010958,2]
[352572481,1739175038486,-500.0,0.00010958,2]
[352572483,1739175038497,-500.0,0.00010958,2]
[352572485,1739175038506,-500.0,0.00010958,2]
[352572487,1739175038515,-500.0,0.00010958,2]
[352572489,1739175038525,-500.0,0.00010958,2]
[352572491,1739175038533,-502.00691604,0.00010958,2]
[352572493,1739175038546,-500.0,0.00010958,2]
[352572495,1739175038555,-688.78,0.00010958,2]
[352572497,1739175038565,-500.0,0.00010958,2]
[352572499,1739175038577,-1034.91,0.00010958,2]
[352572501,1739175038592,-500.0,0.00010958,2]
[352572503,1739175038602,-9467.32,0.00010958,2]
[352572505,1739175038611,-500.0,0.00010958,2]
[352572507,1739175038621,-500.0,0.00010958,2]
[352572509,1739175038630,-500.0,0.00010958,2]
[352572511,1739175038640,-500.0,0.00010958,2]
[352572513,1739175038649,-500.0,0.00010958,2]
[352572515,1739175038659,-512.81,0.00010958,2]
[352572517,1739175038668,-500.0,0.00010958,2]
[352572519,1739175038678,-1737.53,0.00010958,2]
[352572521,1739175038688,-500.0,0.00010958,2]
[352572523,1739175038698,-500.0,0.00010958,2]
[352572525,1739175038708,-500.0,0.00010958,2]
[352572527,1739175038717,-500.0,0.00010958,2]
[352572529,1739175038726,-800.73,0.00010958,2]
[352572531,1739175038736,-500.0,0.00010958,2]
[352572533,1739175038745,-500.0,0.00010958,2]
[352572535,1739175038755,-2140.57,0.00010958,2]
[352572537,1739175038766,-500.0,0.00010958,2]
[352572539,1739175038779,-500.0,0.00010958,2]
[352572541,1739175038791,-325.6901522,0.00010958,2]
[352572543,1739175038803,-500.0,0.00010958,2]
[352572545,1739175038820,-381.18850077,0.00010958,2]
[352572547,1739175038829,-500.0,0.00010958,2]
[352572549,1739175038839,-500.0,0.00010958,2]
[352572551,1739175038851,-858.14,0.00010958,2]
[352572553,1739175038860,-500.0,0.00010958,2]
[352572555,1739175038869,-500.0,0.00010958,2]
[352572557,1739175038880,-500.0,0.00010958,2]
[352572559,1739175038890,-500.0,0.00010958,2]
[352572561,1739175038900,-500.0,0.00010958,2]
[352572563,1739175038909,-500.0,0.00010958,2]
[352572565,1739175038919,-500.0,0.00010958,2]
[352572567,1739175038929,-500.0,0.00010958,2]
[352572569,1739175038939,-500.0,0.00010958,2]
[352572571,1739175038948,-500.0,0.00010958,2]
[352572573,1739175038958,-480.24814645,0.00010958,2]
[352572575,1739175038968,-500.0,0.00010958,2]
[352572577,1739175038977,-500.0,0.00010958,2]
[352572579,1739175038987,-500.0,0.00010958,2]
[352572581,1739175038998,-790.65,0.00010958,2]
[352572583,1739175039009,-898.09,0.00010958,2]
[352572585,1739175039019,-500.0,0.00010958,2]
[352572587,1739175039028,-500.0,0.00010958,2]
[352572589,1739175039041,-500.0,0.00010958,2]
[352572591,1739175039051,-500.0,0.00010958,2]
[352572593,1739175039060,-500.0,0.00010958,2]
[352572595,1739175039070,-5296.17,0.00010958,2]
[352572597,1739175039080,-758.03,0.00010958,2]
[352572600,1739175039090,-500.0,0.00010958,2]
[352572601,1739175039099,-500.0,0.00010958,2]
[352572603,1739175039108,-500.0,0.00010958,2]
[352572606,1739175039118,-904.74,0.00010958,2]
[352572607,1739175039127,-500.0,0.00010958,2]
[352572609,1739175039136,-1142.61,0.00010958,2]
[352572612,1739175039146,-500.0,0.00010958,2]
[352572614,1739175039157,-500.0,0.00010958,2]
[352572616,1739175039166,-1072.74,0.00010958,2]
[352572618,1739175039176,-500.0,0.00010958,2]
[352572620,1739175039185,-500.0,0.00010958,2]
[352572622,1739175039195,-500.0,0.00010958,2]
[352572624,1739175039206,-1925.14,0.00010958,2]
[352572626,1739175039216,-500.0,0.00010958,2]
[352572628,1739175039225,-173.72,0.00010959,2]
[352572630,1739175039235,-868.63,0.00010959,2]
[352572632,1739175039245,-447.48363564,0.00011095,2]
[352572634,1739175039255,-383.46,0.00011095,2]
[352572636,1739175039264,-500.0,0.00011095,2]
[352572638,1739175039273,-500.0,0.00011095,2]
[352572640,1739175039282,-500.0,0.00011095,2]
[352572642,1739175039294,-500.0,0.00011095,2]
[352572644,1739175039303,-168.66317829,0.00011095,2]
[352572646,1739175039313,-500.0,0.00011095,2]
[352572648,1739175039321,-500.0,0.00011095,2]
[352572650,1739175039331,-500.0,0.00011095,2]
[352572652,1739175039340,-205.37117131,0.00011095,2]
[352572654,1739175039351,-500.0,0.00011095,2]
[352572656,1739175039361,-500.0,0.00011095,2]
[352572658,1739175039371,-500.0,0.00011095,2]
[352572660,1739175039380,-500.0,0.00011095,2]
[352572662,1739175039389,-500.0,0.00011095,2]
[352572664,1739175039398,-500.0,0.00011095,2]
[352572666,1739175039407,-597.8535654,0.00011095,2]
[352572668,1739175039417,-500.0,0.00011095,2]
[352572670,1739175039426,-500.0,0.00011095,2]
[352572672,1739175039436,-500.0,0.00011095,2]
[352572674,1739175039445,-500.0,0.00011095,2]
[352572676,1739175039454,-500.0,0.00011095,2]
[352572678,1739175039464,-500.0,0.00011095,2]
[352572680,1739175039473,-423.12021039,0.00011095,2]
[352572682,1739175039482,-500.0,0.00011095,2]
[352572685,1739175039492,-688.78,0.00011095,2]
[352572687,1739175039502,-1034.91,0.00011095,2]
[352572689,1739175039511,-500.0,0.00011095,2]
[352572691,1739175039520,-9467.32,0.00011095,2]
[352572693,1739175039529,-500.0,0.00011095,2]
[352572695,1739175039540,-500.0,0.00011095,2]
[352572697,1739175039549,-500.0,0.00011095,2]
[352572699,1739175039558,-512.81,0.00011095,2]
[352572701,1739175039568,-1737.53,0.00011095,2]
[352572703,1739175039577,-500.0,0.00011095,2]
[352572705,1739175039587,-500.0,0.00011095,2]
[352572707,1739175039597,-500.0,0.00011095,2]
[352572709,1739175039606,-500.0,0.00011095,2]
[352572711,1739175039615,-800.73,0.00011095,2]
[352572713,1739175039624,-500.0,0.00011095,2]
[352572716,1739175039634,-500.0,0.00011095,2]
[352572718,1739175039643,-2140.57,0.00011095,2]
[352572720,1739175039652,-500.0,0.00011095,2]
[352572723,1739175039661,-500.0,0.00011095,2]
[352572726,1739175039671,-500.0,0.00011095,2]
[352572728,1739175039679,-500.0,0.00011095,2]
[352572730,1739175039688,-858.14,0.00011095,2]
[352572732,1739175039697,-500.0,0.00011095,2]
[352572734,1739175039706,-500.0,0.00011095,2]
[352572736,1739175039715,-500.0,0.00011095,2]
[352572738,1739175039724,-356.84,0.00011095,2]
[352572740,1739175039733,-500.0,0.00011095,2]
[352572742,1739175039742,-500.0,0.00011095,2]
[352572744,1739175039751,-500.0,0.00011095,2]
[352572746,1739175039760,-500.0,0.00011095,2]
[352572748,1739175039769,-500.0,0.00011095,2]
[352572750,1739175039780,-500.0,0.00011095,2]
[352572752,1739175039791,-500.0,0.00011095,2]
[352572754,1739175039802,-790.65,0.00011095,2]
[352572756,1739175039811,-898.09,0.00011095,2]
[352572758,1739175039821,-500.0,0.00011095,2]
[352572760,1739175039830,-488.50781239,0.00011095,2]
[352572762,1739175039839,-500.0,0.00011095,2]
[352572764,1739175039849,-500.0,0.00011095,2]
[352572766,1739175039858,-500.0,0.00011095,2]
[352572768,1739175039868,-5296.17,0.00011095,2]
[352572770,1739175039879,-758.03,0.00011095,2]
[352572772,1739175039889,-500.0,0.00011095,2]
[352572774,1739175039898,-500.0,0.00011095,2]
[352572776,1739175039908,-596.65,0.00011095,2]
[352572778,1739175039918,-904.74,0.00011095,2]
[352572780,1739175039928,-1142.61,0.00011095,2]
[352572782,1739175039938,-500.0,0.00011095,2]
[352572784,1739175039947,-1072.74,0.00011095,2]
[352572786,1739175039956,-500.0,0.00011095,2]
[352572788,1739175039966,-1925.14,0.00011095,2]
[352572790,1739175039976,-500.0,0.00011095,2]
[352572792,1739175039986,-500.0,0.00011232,2]
[352572794,1739175039996,-500.0,0.00011232,2]
[352572796,1739175040006,-500.0,0.00011232,2]
[352572798,1739175040016,-500.0,0.00011232,2]
[352572800,1739175040026,-500.0,0.00011232,2]
[352572802,1739175040040,-500.0,0.00011232,2]
[352572804,1739175040049,-500.0,0.00011232,2]
[352572806,1739175040058,-500.0,0.00011232,2]
[352572808,1739175040068,-500.0,0.00011232,2]
[352572810,1739175040078,-500.0,0.00011232,2]
[352572812,1739175040087,-500.0,0.00011232,2]
[352572814,1739175040096,-500.0,0.00011232,2]
[352572816,1739175040106,-500.0,0.00011232,2]
[352572818,1739175040115,-500.0,0.00011232,2]
[352572820,1739175040125,-500.0,0.00011232,2]
[352572822,1739175040134,-500.0,0.00011232,2]
[352572824,1739175040143,-500.0,0.00011232,2]
[352572826,1739175040154,-688.78,0.00011232,2]
[352572827,1739175040164,-1034.91,0.00011232,2]
[352572829,1739175040174,-500.0,0.00011232,2]
[352572831,1739175040184,-9467.32,0.00011232,2]
[352572833,1739175040194,-500.0,0.00011232,2]
[352572835,1739175040205,-500.0,0.00011232,2]
[352572837,1739175040214,-500.0,0.00011232,2]
[352572839,1739175040224,-512.81,0.00011232,2]
[352572841,1739175040233,-1737.53,0.00011232,2]
[352572843,1739175040243,-500.0,0.00011232,2]
[352572845,1739175040253,-500.0,0.00011232,2]
[352572847,1739175040262,-500.0,0.00011232,2]
[352572849,1739175040271,-500.0,0.00011232,2]
[352572851,1739175040279,-800.73,0.00011232,2]
[352572853,1739175040291,-500.0,0.00011232,2]
[352572855,1739175040300,-500.0,0.00011232,2]
[352572857,1739175040309,-2140.57,0.00011232,2]
[352572859,1739175040318,-500.0,0.00011232,2]
[352572861,1739175040328,-500.0,0.00011232,2]
[352572864,1739175040338,-500.0,0.00011232,2]
[352572866,1739175040348,-500.0,0.00011232,2]
[352572868,1739175040357,-858.14,0.00011232,2]
[352572870,1739175040366,-500.0,0.00011232,2]
[352572872,1739175040376,-500.0,0.00011232,2]
[352572874,1739175040385,-500.0,0.00011232,2]
[352572876,1739175040395,-500.0,0.00011232,2]
[352572878,1739175040405,-500.0,0.00011232,2]
[352572880,1739175040414,-500.0,0.00011232,2]
[352572882,1739175040423,-500.0,0.00011232,2]
[352572884,1739175040433,-500.0,0.00011232,2]
[352572886,1739175040442,-790.65,0.00011232,2]
[352572888,1739175040451,-898.09,0.00011232,2]
[352572890,1739175040461,-500.0,0.00011232,2]
[352572892,1739175040470,-500.0,0.00011232,2]
[352572894,1739175040479,-500.0,0.00011232,2]
[352572896,1739175040488,-500.0,0.00011232,2]
[352572898,1739175040497,-758.03,0.00011232,2]
[352572900,1739175040507,-5296.17,0.00011232,2]
[352572902,1739175040516,-500.0,0.00011232,2]
[352572904,1739175040525,-500.0,0.00011232,2]
[352572906,1739175040534,-904.74,0.00011232,2]
[352572908,1739175040548,-1142.61,0.00011232,2]
[352572910,1739175040557,-500.0,0.00011232,2]
[352572912,1739175040566,-1072.74,0.00011232,2]
[352572914,1739175040576,-500.0,0.00011232,2]
[352572916,1739175040586,-1925.14,0.00011232,2]
[352572918,1739175040596,-500.0,0.00011232,2]
[352572920,1739175040605,-500.0,0.00011369,2]
[352572922,1739175040615,-500.0,0.00011369,2]
[352572924,1739175040624,-500.0,0.00011369,2]
[352572926,1739175040634,-500.0,0.00011369,2]
[352572928,1739175040644,-500.0,0.00011369,2]
[352572930,1739175040653,-500.0,0.00011369,2]
[352572932,1739175040663,-500.0,0.00011369,2]
[352572934,1739175040673,-500.0,0.00011369,2]
[352572936,1739175040682,-500.0,0.00011369,2]
[352572938,1739175040691,-500.0,0.00011369,2]
[352572940,1739175040701,-512.18,0.00011369,2]
[352572942,1739175040710,-500.0,0.00011369,2]
[352572944,1739175040720,-500.0,0.00011369,2]